fUSD/lending_fUSD_20251118
["ID","MTS","AMOUNT","RATE_DAILY","PERIOD"]
[394318106,1763445054595,450.14431719,0.00041691,120]
[394318107,1763445068523,1800.645832,7.945e-05,2]
[394318108,1763445069835,-500.0,0.00016899,2]
[394318109,1763445069857,-1000.0,0.000169,2]
[394318110,1763445069884,-1.50189856,0.000169,2]
[394318111,1763445099034,-194.15791756,0.00016815,2]
[394318114,1763445159158,-500.0,0.00016873,2]
[394318115,1763445159188,-2498.49810144,0.000169,2]
[394318116,1763445165035,-223.779804,0.00016815,2]
[394318117,1763445165065,-2258.759992,0.000169,2]
[394318118,1763445168097,-4965.079592,0.000169,2]
[394318120,1763445201853,-482.31472923,0.000168,2]
[394318121,1763445206439,-200.60351421,0.000168,2]
[394318122,1763445208753,-317.08175656,0.000168,2]
[394318123,1763445208777,-142.54900148,0.000168,2]
[394318124,1763445212759,-237.49539685,0.000168,2]
[394318125,1763445216630,-151.01349756,0.000168,2]
[394318126,1763445218808,-797.11568317,0.000168,2]
[394318127,1763445221338,-160.91847526,0.000168,2]
[394318128,1763445223522,-247.15896071,0.000168,2]
[394318129,1763445227329,-208.01099995,0.000168,2]
[394318130,1763445230334,-163.68527077,0.000168,2]
[394318131,1763445232608,-180.70034894,0.000168,2]
[394318132,1763445235758,-266.99466597,0.000168,2]
[394318133,1763445239488,333.2322,0.000167,2]
[394318134,1763445240649,-280.2144,0.000168,2]
[394318135,1763445244064,-169.32579707,0.00016799,2]
[394318136,1763445246179,-285.0593874,0.00016799,2]
[394318137,1763445247739,-95.61481553,0.00016799,2]
[394318138,1763445247774,-229.47025885,0.000168,2]
[394318139,1763445250984,-20.52974115,0.000168,2]
[394318140,1763445251007,-195.0,0.000168,2]
[394318141,1763445251038,-87.63683561,0.000168,2]
[394318142,1763445251800,3484.39903646,0.000167,2]
[394318143,1763445254528,-242.05258459,0.000168,2]
[394318145,1763445256043,-57.94741541,0.000168,2]
[394318146,1763445256069,-289.86252415,0.000168,2]
[394318147,1763445259464,-249.50064024,0.000168,2]
[394318148,1763445264075,-183.82122545,0.000168,2]
[394318149,1763445267328,-156.96365983,0.000168,2]
[394318150,1763445269069,-435.72796336,0.000168,2]
[394318151,1763445287772,-304.751249,0.000168,2]
[394318152,1763445290548,-336.12842337,0.000168,2]
[394318153,1763445293406,-261.41590027,0.000168,2]
[394318154,1763445297124,-225.56233507,0.000168,2]
[394318155,1763445301545,-237.62784847,0.00016799,2]
[394318156,1763445304287,-62.37215153,0.00016799,2]
[394318157,1763445304314,-375.45306717,0.00016799,2]
[394318158,1763445309736,-156.66465127,0.00016799,2]
[394318159,1763445311407,-155.565573,0.00016799,2]
[394318160,1763445313392,-172.86681784,0.00016799,2]
[394318161,1763445315355,-304.32788016,0.00016799,2]
[394318162,1763445318185,-35.12201056,0.00016799,2]
[394318163,1763445318206,-205.83028395,0.00016799,2]
[394318164,1763445319678,-94.16971605,0.00016799,2]
[394318165,1763445319701,-74.46160158,0.00016799,2]
[394318166,1763445322340,-250.0,0.00016799,2]
[394318167,1763445323843,-175.53839842,0.00016799,2]
[394318168,1763445323866,-19.71035258,0.00016799,2]
[394318169,1763445325974,-300.0,0.00016799,2]
[394318170,1763445328789,-157.97344633,0.00016799,2]
[394318171,1763445331593,-151.01353006,0.00016799,2]
[394318172,1763445336641,500.0,0.00041719,120]
[394318173,1763445336999,500.0,0.00041719,120]
[394318174,1763445337119,500.0,0.00041719,120]
[394318175,1763445337363,509.34545085,0.00041719,120]
[394318176,1763445365236,170.99149677,0.00041719,120]
[394318177,1763445366346,1000.0,0.000167,2]
[394318178,1763445380997,500.0,0.00041719,30]
[394318179,1763445381272,500.53343406,0.00041719,30]
[394318180,1763445382825,393.67192989,0.00016699,2]
[394318181,1763445391254,207.59719237,0.000167,2]
[394318182,1763445399999,509.78846219,0.00041719,120]
[394318183,1763445409926,752.38777143,0.000167,2]
[394318184,1763445424471,180.85651818,0.00041719,120]
[394318185,1763445427659,200.0,0.00041719,120]
[394318186,1763445430680,151.0,0.00041719,120]
[394318187,1763445431365,151.0,0.00041719,120]
[394318188,1763445450980,167.95137421,0.000167,2]
[394318189,1763445484805,500.0,0.00041719,120]
[394318190,1763445485081,500.0,0.00041719,120]
[394318191,1763445485313,500.0,0.00041719,120]
[394318192,1763445485539,500.0,0.00041719,120]
[394318193,1763445485890,500.0,0.00041719,120]
[394318194,1763445486135,500.0,0.00041719,120]
[394318195,1763445486386,500.0,0.00041719,120]
[394318196,1763445486637,500.0,0.00041719,120]
[394318197,1763445486907,500.0,0.00041719,120]
[394318198,1763445487196,500.0,0.00041719,120]
[394318199,1763445487449,500.0,0.00041719,120]
[394318200,1763445487692,500.0,0.00041719,120]
[394318201,1763445487964,513.16047683,0.00041719,120]
[394318202,1763445488852,151.0,0.00041719,120]
[394318203,1763445489501,151.0,0.00041719,120]
[394318204,1763445515956,1000.0,0.000167,2]
[394318205,1763445524813,150.0,0.00041719,30]
[394318206,1763445532184,2660.77049564,0.000167,2]
[394318207,1763445532219,3397.74488006,0.000167,2]
[394318208,1763445548823,151.0,0.00041719,120]
[394318209,1763445554744,6558.41,9.336e-05,2]
[394318210,1763445554937,43.85511994,9.828e-05,2]
[394318211,1763445554960,6514.55488006,9.828e-05,2]
[394318212,1763445555151,3485.45511994,0.00010319,2]
[394318213,1763445555175,3072.95488006,0.00010319,2]
[394318214,1763445555205,501.59184762,0.000167,2]
[394318215,1763445555459,6425.46327232,0.0001081,2]
[394318216,1763445555482,132.94672768,0.0001081,2]
[394318217,1763445555566,6558.41,0.00011302,2]
[394318218,1763445555765,3308.65327232,0.00011793,2]
[394318219,1763445555789,3249.75672768,0.00011793,2]
[394318220,1763445555958,6558.41,0.00012284,2]
[394318221,1763445556176,191.84327232,0.00012776,2]
[394318222,1763445556201,6366.56672768,0.00012776,2]
[394318223,1763445556413,3633.44327232,0.00013267,2]
[394318224,1763445556438,2924.96672768,0.00013267,2]
[394318225,1763445556614,6558.41,0.00013759,2]
[394318226,1763445556826,516.63327232,0.0001425,2]
[394318227,1763445556854,6041.77672768,0.0001425,2]
[394318228,1763445557016,3958.23327232,0.00014741,2]
[394318229,1763445557041,2600.17672768,0.00014741,2]
[394318230,1763445557176,305.44648592,0.000164,2]
[394318231,1763445557218,6558.41,0.00015233,2]
[394318232,1763445557412,535.9767864,0.00015724,2]
[394318233,1763445557436,6022.4332136,0.00015724,2]
[394318234,1763445557615,3977.5767864,0.00016215,2]
[394318235,1763445561244,-2580.8332136,0.00016215,2]
[394318236,1763445564262,-3441.6,0.00016707,2]
[394318237,1763445567730,-3116.81,0.00016707,2]
[394318238,1763445567762,-550.0,0.00016798,2]
[394318239,1763445567793,-1200.0,0.00016798,2]
[394318240,1763445567829,-16.39,0.00016799,2]
[394318241,1763445580001,2500.0,0.000167,2]
[394318242,1763445582650,2160.65287162,0.00016783,2]
[394318243,1763445587616,4952.84111637,0.000167,2]
[394318244,1763445588290,552.55,0.00019178,30]
[394318246,1763445614340,151.0,0.00041683,120]
[394318247,1763445614988,151.0,0.00041683,120]
[394318248,1763445615676,-180.71,0.0001679,2]
[394318249,1763445615706,-180.71,0.0001679,2]
[394318250,1763445615736,-180.71,0.0001679,2]
[394318251,1763445615766,-180.71,0.0001679,2]
[394318252,1763445615796,-180.71,0.0001679,2]
[394318253,1763445671734,181.64754335,0.000167,2]
[394318254,1763445673807,151.0,0.00041683,120]
[394318255,1763445674414,151.0,0.00041683,120]
[394318256,1763445676007,-300.0,0.00016797,2]
[394318257,1763445692906,1678.431,0.00016464,2]
[394318258,1763445700412,334.39456508,0.000167,2]
[394318259,1763445706431,167.9513742,0.000167,2]
[394318260,1763445721730,300.0,0.00016797,2]
[394318261,1763445728702,205.58412549,0.00041683,120]
[394318262,1763445731291,151.0,0.00041683,120]
[394318263,1763445731520,151.0,0.0001679,2]
[394318264,1763445732211,151.0,0.0001679,2]
[394318265,1763445732852,151.0,0.0001679,2]
[394318266,1763445733526,151.0,0.0001679,2]
[394318267,1763445733645,151.0,0.00041683,120]
[394318268,1763445734140,151.0,0.0001679,2]
[394318269,1763445734753,151.0,0.0001679,2]
[394318270,1763445735483,154.64989432,0.0001679,2]
[394318271,1763445751120,2500.0,0.000167,2]
[394318272,1763445755420,1000.0,0.00041683,30]
[394318273,1763445755516,416.78392565,0.00016698,2]
[394318274,1763445762314,195.62,0.00041683,30]
[394318275,1763445766111,1200.0,0.00016797,2]
[394318276,1763445777166,171.86246686,0.00016698,2]
[394318277,1763445781776,300.0,0.00016797,2]
[394318278,1763445781926,550.0,0.00016797,2]
[394318280,1763445787285,-200.0,0.000169,6]
[394318281,1763445795923,302.0,0.00041683,120]
[394318282,1763445811545,719.93677389,0.00016692,2]
[394318283,1763445811572,2290.70172481,0.00016692,2]
[394318284,1763445820759,416.78392565,0.00016698,2]
[394318285,1763445835003,5210.89,0.00016438,2]
[394318286,1763445841316,300.0,0.00016797,2]
[394318287,1763445845243,151.0,0.00041683,120]
[394318288,1763445845900,222.92971004,0.000167,2]
[394318289,1763445901183,300.0,0.00016797,2]
[394318290,1763445901333,300.0,0.00016797,2]
[394318291,1763445901520,958.7046395,0.00016797,2]
[394318292,1763445901544,241.2953605,0.00016797,2]
[394318293,1763445918319,5452.66383813,0.000167,2]
[394318294,1763445921527,2500.0,0.000167,2]
[394318295,1763445922068,453.0,0.00041683,120]
[394318296,1763445939895,410.53488963,0.00016773,2]
[394318297,1763445951981,158.94160044,0.000167,2]
[394318304,1763445961531,300.0,0.00016797,2]
[394318305,1763445967949,151.0,0.00041683,120]
[394318306,1763445989669,536.07,0.0002469,120]
[394318307,1763445989877,536.07,0.00026934,120]
[394318308,1763445990908,222.92971004,0.000167,2]
[394318309,1763445994153,151.0,0.00016797,2]
[394318314,1763446032001,302.0,0.00041683,120]
[394318321,1763446089779,302.0,0.00041683,120]
[394318322,1763446094393,562.64460126,0.000167,2]
[394318323,1763446094416,1937.35539874,0.000167,2]
[394318324,1763446097866,4457.55700476,0.000167,2]
[394318325,1763446126126,222.92971004,0.000167,2]
[394318333,1763446147994,302.0,0.00041683,120]
[394318356,1763446193468,261.6000528,0.00016797,2]
[394318357,1763446201630,1200.0,0.00016797,2]
[394318358,1763446201792,300.0,0.00016797,2]
[394318359,1763446202995,1620.56783366,0.00016699,2]
[394318360,1763446203023,10000.01,0.00016699,2]
[394318361,1763446203049,10000.01,0.00016699,2]
[394318362,1763446203084,10000.01,0.00016699,2]
[394318363,1763446203112,10000.01,0.00016699,2]
[394318364,1763446203138,10000.01,0.00016699,2]
[394318365,1763446203164,10000.01,0.00016699,2]
[394318366,1763446203190,10000.01,0.00016699,2]
[394318367,1763446203215,10000.01,0.00016699,2]
[394318368,1763446203240,10000.01,0.00016699,2]
[394318369,1763446212784,-500.0,0.0001662,2]
[394318370,1763446215829,-163.66,0.00016689,2]
[394318371,1763446215860,-250.0,0.00016694,2]
[394318372,1763446217051,302.0,0.00041683,120]
[394318390,1763446231662,-525.74328535,0.00016699,2]
[394318392,1763446231674,-1145.67076436,0.00016699,2]
[394318394,1763446231721,-667.21344307,0.00016699,2]
[394318395,1763446231733,-592.17784203,0.00016699,2]
[394318396,1763446231795,-925.2396,0.00016699,2]
[394318397,1763446231813,-2970.53334476,0.00016699,2]
[394318454,1763446232550,158.94160037,0.00016698,2]
[394318788,1763446237711,-906.03,0.00016699,2]
[394318798,1763446239720,-299.99,0.00016699,2]
[394318801,1763446239790,-695.42101544,0.00016699,2]
[394318802,1763446239801,-673.78016364,0.00016699,2]
[394318804,1763446239812,-312.30701371,0.00016699,2]
[394318862,1763446240627,-1.6e-07,0.00016699,2]
[394318863,1763446240639,-684.23248463,0.00016699,2]
[394318864,1763446240651,-4526.16746246,0.00016699,2]
[394318915,1763446275193,302.0,0.00041683,120]
[394318916,1763446277111,500.0,0.00016698,2]
[394318917,1763446277339,500.0,0.00016698,2]
[394318918,1763446292862,1342.745,0.00016365,2]
[394318919,1763446304552,4907.39745429,0.000166,2]
[394318920,1763446321340,300.0,0.00016698,2]
[394318921,1763446321867,550.0,0.00016698,2]
[394318922,1763446324865,250.0,0.00041683,120]
[394318923,1763446324961,151.0,0.00041683,120]
[394318924,1763446325466,250.0,0.00041683,120]
[394318925,1763446325547,250.0,0.00041683,120]
[394318926,1763446326098,250.0,0.00041683,120]
[394318927,1763446326176,250.0,0.00041683,120]
[394318928,1763446326949,250.0,0.00041683,120]
[394318929,1763446327816,250.0,0.00041683,120]
[394318930,1763446328521,250.0,0.00041683,120]
[394318931,1763446329038,414.0,0.00041683,120]
[394318932,1763446329266,250.0,0.00041683,120]
[394318933,1763446329712,429.318,0.00041683,120]
[394318934,1763446329872,250.0,0.00041683,120]
[394318935,1763446330916,592.26215266,0.00041683,120]
[394318936,1763446331489,500.0,0.00041683,120]
[394318937,1763446332103,500.0,0.00041683,120]
[394318938,1763446332310,302.0,0.00041683,120]
[394318939,1763446332753,500.0,0.00041683,120]
[394318940,1763446333360,500.0,0.00041683,120]
[394318941,1763446333984,500.0,0.00041683,120]
[394318942,1763446334186,250.0,0.00041683,120]
[394318943,1763446334608,500.0,0.00041683,120]
[394318944,1763446334812,250.0,0.00041683,120]
[394318945,1763446335231,500.0,0.00041683,120]
[394318946,1763446335400,250.0,0.00041683,120]
[394318947,1763446335872,500.0,0.00041683,120]
[394318948,1763446336014,250.0,0.00041683,120]
[394318949,1763446336643,250.0,0.00041683,120]
[394318950,1763446337268,250.0,0.00041683,120]
[394318951,1763446337935,250.0,0.00041683,120]
[394318952,1763446338588,250.0,0.00041683,120]
[394318953,1763446339225,250.0,0.00041683,120]
[394318955,1763446340518,277.35679052,0.00041683,30]
[394318956,1763446343658,151.0,0.00041683,120]
[394318957,1763446344313,151.0,0.00041683,120]
[394318958,1763446344955,151.0,0.00041683,120]
[394318959,1763446345591,151.0,0.00041683,120]
[394318960,1763446346220,151.0,0.00041683,120]
[394318961,1763446346929,151.0,0.00041683,120]
[394318962,1763446347556,151.0,0.00041683,120]
[394318963,1763446348163,151.0,0.00041683,120]
[394318964,1763446351345,151.0,0.00041683,120]
[394318965,1763446355736,200.38,0.00016,2]
[394318966,1763446381360,300.0,0.00016698,2]
[394318971,1763446394696,326.18186933,0.00041683,120]
[394318972,1763446395290,218.67444886,0.00041683,120]
[394318973,1763446397920,6888.0,0.00041683,120]
[394318974,1763446398374,266.34691367,0.00041683,120]
[394318975,1763446398518,7142.856,0.00041683,120]
[394318976,1763446399142,7407.141672,0.00041683,120]
[394318977,1763446399809,7681.20591386,0.00041683,120]
[394318978,1763446400414,7965.41053268,0.00041683,120]
[394318979,1763446401036,8260.13072239,0.00041683,120]
[394318980,1763446401676,8565.75555911,0.00041683,120]
[394318981,1763446402299,8565.75555911,0.00041683,120]
[394318982,1763446443809,413.22594534,0.00016698,2]
[394318983,1763446443832,86.77405466,0.00016698,2]
[394318984,1763446443861,500.0,0.00016698,2]
[394318985,1763446444678,631.64649294,0.00016698,2]
[394318986,1763446444744,500.0,0.00016698,2]
[394318987,1763446445116,500.0,0.00016698,2]
[394318988,1763446445483,500.0,0.00016698,2]
[394318989,1763446445977,500.0,0.00016698,2]
[394318990,1763446446288,445.75800732,0.00016698,2]
[394318991,1763446446617,500.0,0.00016698,2]
[394318992,1763446446921,500.0,0.00016698,2]
[394318993,1763446447225,500.0,0.00016698,2]
[394318994,1763446447512,500.0,0.00016698,2]
[394318995,1763446447559,205.13397946,0.00016698,2]
[394318996,1763446448420,500.0,0.00016698,2]
[394318997,1763446448450,500.0,0.00016698,2]
[394318998,1763446448481,500.0,0.00016698,2]
[394318999,1763446448513,500.0,0.00016698,2]
[394319000,1763446448544,500.0,0.00016698,2]
[394319001,1763446448573,500.0,0.00016698,2]
[394319002,1763446448604,500.0,0.00016698,2]
[394319003,1763446448640,500.0,0.00016698,2]
[394319004,1763446448668,130.69746562,0.00016698,2]
[394319005,1763446448692,369.30253438,0.00016698,2]
[394319006,1763446448722,500.0,0.00016698,2]
[394319007,1763446448755,500.0,0.00016698,2]
[394319008,1763446448790,300.63318427,0.00016698,2]
[394319009,1763446448822,500.0,0.00016698,2]
[394319010,1763446448852,500.0,0.00016698,2]
[394319011,1763446448886,500.0,0.00016698,2]
[394319012,1763446448916,500.0,0.00016698,2]
[394319013,1763446448951,500.0,0.00016698,2]
[394319014,1763446448981,500.0,0.00016698,2]
[394319015,1763446449012,500.0,0.00016698,2]
[394319016,1763446449046,500.0,0.00016698,2]
[394319017,1763446449078,500.0,0.00016698,2]
[394319018,1763446449107,500.0,0.00016698,2]
[394319019,1763446449137,500.0,0.00016698,2]
[394319020,1763446449168,500.0,0.00016698,2]
[394319021,1763446449198,441.43735428,0.00016698,2]
[394319022,1763446449226,500.0,0.00016698,2]
[394319023,1763446449256,500.0,0.00016698,2]
[394319024,1763446449287,500.0,0.00016698,2]
[394319025,1763446449316,388.63692707,0.00016698,2]
[394319026,1763446449339,111.36307293,0.00016698,2]
[394319027,1763446449371,500.0,0.00016698,2]
[394319028,1763446449408,500.0,0.00016698,2]
[394319029,1763446449436,500.0,0.00016698,2]
[394319030,1763446449467,500.0,0.00016698,2]
[394319031,1763446449499,500.0,0.00016698,2]
[394319032,1763446449530,500.0,0.00016698,2]
[394319033,1763446449562,500.0,0.00016698,2]
[394319034,1763446449593,500.0,0.00016698,2]
[394319035,1763446449624,500.0,0.00016698,2]
[394319036,1763446449655,500.0,0.00016698,2]
[394319037,1763446449686,500.0,0.00016698,2]
[394319038,1763446449717,500.0,0.00016698,2]
[394319039,1763446449747,500.0,0.00016698,2]
[394319040,1763446449778,500.0,0.00016698,2]
[394319041,1763446449809,500.0,0.00016698,2]
[394319042,1763446449844,500.0,0.00016698,2]
[394319043,1763446449874,500.0,0.00016698,2]
[394319044,1763446449907,500.0,0.00016698,2]
[394319045,1763446449937,500.0,0.00016698,2]
[394319046,1763446449978,388.64692707,0.00016698,2]
[394319047,1763446450003,111.35307293,0.00016698,2]
[394319048,1763446450032,500.0,0.00016698,2]
[394319049,1763446450067,500.0,0.00016698,2]
[394319050,1763446450096,500.0,0.00016698,2]
[394319051,1763446450127,500.0,0.00016698,2]
[394319052,1763446450165,500.0,0.00016698,2]
[394319053,1763446450200,500.0,0.00016698,2]
[394319054,1763446450235,500.0,0.00016698,2]
[394319055,1763446450273,500.0,0.00016698,2]
[394319056,1763446450315,500.0,0.00016698,2]
[394319057,1763446450387,250.0,0.00041683,120]
[394319058,1763446450447,500.0,0.00016698,2]
[394319059,1763446450479,500.0,0.00016698,2]
[394319060,1763446450514,500.0,0.00016698,2]
[394319061,1763446450551,500.0,0.00016698,2]
[394319062,1763446450788,500.0,0.00016698,2]
[394319063,1763446450833,500.0,0.00016698,2]
[394319064,1763446450922,250.0,0.00041683,120]
[394319065,1763446451296,500.0,0.00041683,120]
[394319066,1763446451361,250.0,0.00041683,120]
[394319067,1763446452006,520.0,0.00041683,120]
[394319068,1763446452096,500.0,0.00041683,120]
[394319069,1763446452168,250.0,0.00041683,120]
[394319070,1763446452516,500.0,0.00041683,120]
[394319071,1763446452590,539.24,0.00041683,120]
[394319072,1763446452661,250.0,0.00041683,120]
[394319073,1763446453110,500.0,0.00041683,120]
[394319074,1763446453176,559.19188,0.00041683,120]
[394319075,1763446453255,250.0,0.00041683,120]
[394319076,1763446453393,250.0,0.00041683,120]
[394319077,1763446453491,250.0,0.00041683,120]
[394319078,1763446453736,579.88197956,0.00041683,120]
[394319079,1763446453806,250.0,0.00041683,120]
[394319080,1763446453872,500.0,0.00041683,120]
[394319081,1763446454110,250.0,0.00041683,120]
[394319082,1763446454364,250.0,0.00041683,120]
[394319083,1763446454441,500.0,0.00041683,120]
[394319084,1763446454519,601.3376128,0.00041683,120]
[394319085,1763446455025,250.0,0.00041683,120]
[394319086,1763446455088,500.0,0.00041683,120]
[394319087,1763446455213,250.0,0.00041683,120]
[394319088,1763446455549,601.3376128,0.00041683,120]
[394319089,1763446455840,250.0,0.00041683,120]
[394319090,1763446455914,500.0,0.00041683,120]
[394319091,1763446456452,250.0,0.00041683,120]
[394319092,1763446456519,500.0,0.00041683,120]
[394319093,1763446457102,500.0,0.00041683,120]
[394319094,1763446458121,250.0,0.00041683,120]
[394319095,1763446458615,6888.0,0.00041683,120]
[394319096,1763446458747,250.0,0.00041683,120]
[394319097,1763446459213,7142.856,0.00041683,120]
[394319098,1763446459379,250.0,0.00041683,120]
[394319099,1763446459460,500.0,0.00041683,120]
[394319100,1763446459822,7407.141672,0.00041683,120]
[394319101,1763446459966,250.0,0.00041683,120]
[394319102,1763446460031,500.0,0.00041683,120]
[394319103,1763446460514,7681.20591386,0.00041683,120]
[394319104,1763446460635,250.0,0.00041683,120]
[394319105,1763446460708,500.0,0.00041683,120]
[394319106,1763446460942,579.86638304,0.00016698,2]
[394319107,1763446460978,500.0,0.00016698,2]
[394319108,1763446461012,579.86638304,0.00016698,2]
[394319109,1763446461046,579.86638304,0.00016698,2]
[394319110,1763446461076,149.05777795,0.00016698,2]
[394319111,1763446461101,350.94222205,0.00016698,2]
[394319112,1763446461134,579.86638304,0.00016698,2]
[394319113,1763446461207,7965.41053268,0.00041683,120]
[394319114,1763446461240,579.86638304,0.00016698,2]
[394319115,1763446461273,579.86638304,0.00016698,2]
[394319116,1763446461303,579.86638304,0.00016698,2]
[394319117,1763446461334,579.86638304,0.00016698,2]
[394319118,1763446461367,579.86638304,0.00016698,2]
[394319119,1763446461401,500.0,0.00016698,2]
[394319120,1763446461437,579.86638304,0.00016698,2]
[394319121,1763446461506,250.0,0.00041683,120]
[394319122,1763446461540,507.08014437,0.00016698,2]
[394319123,1763446461577,579.86638304,0.00016698,2]
[394319124,1763446461616,579.86638304,0.00016698,2]
[394319125,1763446461651,579.86638304,0.00016698,2]
[394319126,1763446461696,579.86638304,0.00016698,2]
[394319127,1763446461730,579.86638304,0.00016698,2]
[394319128,1763446461764,579.86638304,0.00016698,2]
[394319129,1763446461832,500.0,0.00041683,120]
[394319130,1763446461864,579.86638304,0.00016698,2]
[394319131,1763446461893,523.85827102,0.00016698,2]
[394319132,1763446461919,56.00811202,0.00016698,2]
[394319133,1763446462250,579.86638304,0.00016698,2]
[394319134,1763446462280,579.86638304,0.00016698,2]
[394319135,1763446462309,579.86638304,0.00016698,2]
[394319136,1763446462337,579.86638304,0.00016698,2]
[394319137,1763446462408,8260.13072239,0.00041683,120]
[394319138,1763446462438,579.86638304,0.00016698,2]
[394319139,1763446462468,579.86638304,0.00016698,2]
[394319140,1763446462500,579.86638304,0.00016698,2]
[394319141,1763446462534,579.86638304,0.00016698,2]
[394319142,1763446462564,500.0,0.00016698,2]
[394319143,1763446462600,579.86638304,0.00016698,2]
[394319144,1763446462672,250.0,0.00041683,120]
[394319145,1763446462704,579.86638304,0.00016698,2]
[394319146,1763446462735,579.86638304,0.00016698,2]
[394319147,1763446462765,579.86638304,0.00016698,2]
[394319148,1763446462795,579.86638304,0.00016698,2]
[394319149,1763446462825,579.86638304,0.00016698,2]
[394319150,1763446462855,579.86638304,0.00016698,2]
[394319151,1763446462887,579.86638304,0.00016698,2]
[394319152,1763446462970,500.0,0.00041683,120]
[394319153,1763446463031,8565.75555911,0.00041683,120]
[394319154,1763446463089,250.0,0.00041683,120]
[394319155,1763446463151,500.0,0.00041683,120]
[394319156,1763446463186,166.13975934,0.00016698,2]
[394319157,1763446463212,413.7266237,0.00016698,2]
[394319158,1763446463270,8882.6885148,0.00041683,120]
[394319159,1763446463329,250.0,0.00041683,120]
[394319160,1763446463496,500.0,0.00041683,120]
[394319161,1763446463595,9211.34798985,0.00041683,120]
[394319162,1763446463701,250.0,0.00041683,120]
[394319163,1763446464144,500.0,0.00041683,120]
[394319164,1763446464231,9552.16786547,0.00041683,120]
[394319165,1763446464357,250.0,0.00041683,120]
[394319166,1763446464817,500.0,0.00041683,120]
[394319167,1763446464899,9905.5980765,0.00041683,120]
[394319168,1763446464965,250.0,0.00041683,120]
[394319169,1763446465557,500.0,0.00041682,120]
[394319170,1763446465624,250.0,0.00041682,120]
[394319171,1763446466191,500.0,0.00041682,120]
[394319172,1763446466257,250.0,0.00041682,120]
[394319173,1763446466838,250.0,0.00041682,120]
[394319174,1763446467426,250.0,0.00041682,120]
[394319175,1763446468028,250.0,0.00041682,120]
[394319176,1763446468640,250.0,0.00041682,120]
[394319177,1763446476396,500.0,0.00016698,2]
[394319178,1763446477119,500.0,0.00041682,120]
[394319179,1763446478221,500.0,0.00041682,120]
[394319180,1763446478877,500.0,0.00041682,120]
[394319181,1763446479501,500.0,0.00041682,120]
[394319182,1763446480132,500.0,0.00041682,120]
[394319183,1763446480751,500.0,0.00041682,120]
[394319184,1763446481362,500.0,0.00041682,120]
[394319185,1763446481985,500.0,0.00041682,120]
[394319186,1763446482729,500.0,0.00041682,120]
[394319187,1763446501333,1200.0,0.00016698,2]
[394319188,1763446501576,300.0,0.00016698,2]